bitfinex-derivatives/quotes_ETHF0:USTF0_20250928
["timestamp","ask_amount","ask_price","bid_price","bid_amount"]
[1759023643022,1.31237927,3999.6,3999.2,4.34549307]
[1759023643219,2.57680078,3999.5,3999.4,0.4498]
[1759023643625,2.57680078,3999.5,3999.0,0.257]
[1759023643813,2.57680078,3999.5,3999.4,0.4498]
[1759023643814,2.03329307,3999.5,3999.4,0.4498]
[1759023644015,2.57679122,3999.5,3999.4,0.4498]
[1759023644917,2.57679122,3999.5,3998.8,3.451]
[1759023644918,0.1267,3999.0,3998.8,3.2078]
[1759023645124,0.1267,3999.0,3998.1,0.2432]
[1759023645125,0.8956,3998.5,3998.4,0.4505]
[1759023646408,0.8956,3998.5,3998.4,0.2234]
[1759023646615,1.34551,3998.5,3998.2,0.45313785]
[1759023646810,0.4518,3998.3,3998.2,0.45313785]
[1759023647017,0.7689,3998.3,3998.2,0.90363785]
[1759023650618,1.26439307,3998.5,3998.2,0.90363785]
[1759023650619,0.3171,3998.5,3998.4,1.14361]
[1759023650825,0.5433,3998.5,3998.4,1.14361]
[1759023651124,0.8956,3998.5,3998.4,0.2234]
[1759023651317,0.7689,3998.4,3998.3,0.44992]
[1759023651622,0.5433,3998.4,3998.3,0.90042]
[1759023652014,0.7689,3998.4,3998.3,0.90042]
[1759023653910,0.7689,3998.4,3998.3,1.14382]
[1759023655022,0.7689,3998.4,3998.3,0.90042]
[1759023659011,0.4518,3998.4,3998.2,0.45314785]
[1759023659217,0.7675,3998.3,3998.2,0.45314785]
[1759023659924,0.7675,3998.3,3998.2,0.67834785]
[1759023660517,0.7675,3998.3,3998.2,0.89454785]
[1759023661825,0.7675,3998.3,3998.2,1.13794785]
[1759023662122,0.3346,3998.3,3998.2,1.13794785]
[1759023663224,0.7675,3998.3,3998.2,0.89454785]
[1759023664928,0.5493,3998.3,3998.2,1.13794785]
[1759023666029,3.5424,3998.6,3998.5,0.4414]
[1759023666230,3.5424,3998.6,3998.5,0.6848]
[1759023666426,3.5424,3998.6,3998.5,1.1347]
[1759023666427,3.2078,3998.6,3998.5,1.1347]
[1759023666630,0.3346,3999.0,3998.9,1.13466]
[1759023667025,0.3346,3998.9,3998.6,0.44989]
[1759023667332,0.7675,3998.7,3998.6,0.44989]
[1759023667632,0.1294,3998.5,3998.4,0.2252]
[1759023667825,0.5623,3998.5,3998.4,0.2252]
[1759023668025,0.5623,3998.5,3998.3,0.70692]
[1759023668229,0.7675,3998.4,3998.3,0.73602]
[1759023671432,0.7675,3998.4,3998.3,0.70692]
[1759023672432,1.21742,3998.4,3998.2,0.00320785]
[1759023672633,0.88282,3998.4,3998.2,0.45314785]
[1759023672931,0.7656,3998.3,3998.2,0.45314785]
[1759023673630,0.7656,3998.3,3998.2,0.48234785]
[1759023674536,1.31182767,3998.3,3998.2,0.51154785]
[1759023674737,1.31182767,3998.3,3998.2,0.48234785]
[1759023676238,1.31182767,3998.3,3998.2,0.00320785]
[1759023678337,2.44952074,3998.3,3998.2,0.00320785]
[1759023679838,2.70552074,3998.3,3998.2,0.00320785]
[1759023680541,2.44952074,3998.3,3998.2,0.03240785]
[1759023680740,1.31182767,3998.3,3998.2,0.06160785]
[1759023681743,0.542,3998.3,3998.2,0.06160785]
[1759023682643,0.3152,3998.3,3998.2,0.33590785]
[1759023683343,0.5217,3998.3,3998.2,0.31760785]
[1759023683542,0.1294,3998.5,3998.3,0.44993]
[1759023683847,0.1294,3999.0,3998.9,0.0713]
[1759023684044,0.1294,3999.0,3998.9,1.46499307]
[1759023684252,0.1294,3999.0,3998.9,1.91485307]
[1759023684447,0.4711,3999.0,3998.9,5.12265307]
[1759023685246,0.3417,3999.0,3998.9,10.12265307]
[1759023687052,0.4749,3999.0,3998.9,10.12265307]
[1759023687645,0.899,3999.0,3998.9,5.10435307]
[1759023687840,0.899,3999.0,3998.9,3.96666]
[1759023688046,0.899,3999.0,3998.9,0.256]
[1759023688454,0.899,3999.0,3998.2,0.00320785]
[1759023688455,0.1332,3998.5,3998.3,1.13769307]
[1759023688755,0.7658,3998.4,3998.3,1.64062307]
[1759023688961,0.3417,3998.7,3998.6,0.52119]
[1759023689262,0.3417,3998.7,3998.6,1.91488307]
[1759023689464,0.1332,3999.0,3998.9,0.44986]
[1759023689659,0.1332,3999.0,3998.9,1.91485307]
[1759023690062,0.4749,3999.0,3998.9,1.91485307]
[1759023690861,2.03669307,3999.0,3998.9,0.256]
[1759023691053,2.03669307,3999.0,3998.7,0.44987]
[1759023691258,0.3397,3998.5,3998.4,4.39849307]
[1759023691460,0.6814,3998.5,3998.4,4.65449307]
[1759023691961,0.6814,3998.5,3998.4,5.10440307]
[1759023695961,0.1332,3999.0,3998.9,0.44986]
[1759023696169,0.6814,3999.0,3998.9,0.75886]
[1759023696368,0.899,3999.0,3998.9,0.75886]
[1759023697663,0.6814,3999.0,3998.9,0.75886]
[1759023697967,1.26439307,3999.5,3998.9,0.75886]
[1759023697968,0.6749,3999.5,3999.4,0.5028]
[1759023698264,0.6749,3999.5,3999.4,0.7588]
[1759023698663,0.8925,3999.5,3999.4,0.7588]
[1759023701464,0.6749,3999.5,3999.4,0.7588]
[1759023701864,0.8925,3999.5,3999.4,0.7588]
[1759023702875,0.8925,3999.5,3999.4,0.2825]
[1759023705373,0.8925,3999.5,3999.4,0.256]
[1759023705868,1.34229,3999.5,3999.4,0.256]
[1759023707270,1.34885,3999.0,3998.9,3.2078]
[1759023707476,1.34885,3999.0,3998.9,3.4628]
[1759023708073,1.34885,3999.0,3998.9,3.4893]
[1759023708265,1.34885,3999.0,3998.9,3.4628]
[1759023708466,1.34885,3999.0,3998.9,0.255]
[1759023709465,0.4241,3998.6,3998.5,3.2078]
[1759023709670,0.899,3998.5,3998.4,0.0265]
[1759023709976,0.899,3998.5,3998.4,0.2815]
[1759023711979,0.899,3998.5,3998.3,0.0265]
[1759023711980,0.7658,3998.4,3998.3,0.0265]
[1759023712171,0.7658,3998.4,3998.3,0.308]
[1759023714877,0.5482,3998.4,3998.3,0.308]
[1759023715682,0.7552,3998.4,3998.3,0.308]
[1759023716173,0.7552,3998.4,3998.3,0.2815]
[1759023716681,0.7317,3998.3,3998.2,0.00320785]
[1759023716882,0.7317,3998.3,3998.2,1.7345603]
[1759023718085,0.3176,3998.3,3998.2,1.7528603]
[1759023718383,0.5247,3998.3,3998.2,1.7345603]
[1759023719379,0.7317,3998.3,3998.2,1.7345603]
[1759023722077,0.7317,3998.3,3998.2,1.7052603]
[1759023724487,0.7317,3998.3,3998.2,2.1552003]
[1759023727687,0.7317,3998.3,3998.2,1.6759603]
[1759023728689,1.18163,3998.3,3998.2,0.25820785]
[1759023728883,6.18163,3998.3,3998.2,0.25820785]
[1759023729078,6.18163,3998.3,3998.2,0.00320785]
[1759023729285,0.44997,3997.9,3997.7,3.2078]
[1759023729492,0.7732,3997.8,3997.7,3.2078]
[1759023729691,0.7732,3997.8,3997.7,3.4628]
[1759023730292,0.7732,3997.8,3997.7,3.46589233]
[1759023735393,0.7732,3997.8,3997.7,3.50089233]
[1759023736586,7.19095245,3997.8,3997.3,3.2078]
[1759023736793,0.3308,3997.3,3997.2,0.45005]
[1759023737101,0.7732,3997.3,3997.2,0.255]
[1759023737699,0.7759486,3997.3,3997.2,0.2578647]
[1759023740699,0.7759486,3997.3,3997.2,0.3278647]
[1759023744408,0.7759486,3997.3,3997.2,0.2578647]
[1759023745304,0.7759486,3997.3,3997.2,0.0028647]
[1759023745505,1.22315,3997.2,3997.1,0.255]
[1759023746393,1.22315,3997.2,3997.1,0.25730994]
[1759023746590,0.58437,3997.0,3996.9,3.2078]
[1759023746796,0.7731,3996.7,3996.6,0.2895]
[1759023747699,0.7731,3996.7,3996.6,0.2915953]
[1759023748000,0.7731,3996.7,3996.6,0.0020953]
[1759023748196,0.7731,3996.7,3996.6,0.2570953]
[1759023750202,0.7731,3996.7,3996.6,0.0020953]
[1759023750598,0.7731,3996.7,3996.6,0.0365953]
[1759023750797,0.6883,3997.0,3996.9,0.069]
[1759023750997,0.6883,3997.0,3996.9,0.77408]
[1759023751706,0.9074,3997.0,3996.9,0.77408]
[1759023752507,0.9074,3997.0,3996.9,3.98188]
[1759023754313,0.4691,3997.0,3996.9,4.00348]
[1759023754506,0.1336,3997.5,3997.2,1.07875]
[1759023754702,0.1336,3997.5,3997.2,2.75150245]
[1759023756409,0.4684,3997.5,3997.2,2.75150245]
[1759023756611,0.1336,3997.5,3997.2,2.75150245]
[1759023756904,0.5567486,3997.3,3997.2,2.11605245]
[1759023757106,0.5567486,3997.3,3997.2,0.4433]
[1759023757107,0.7758486,3997.3,3997.2,0.4433]
[1759023757307,1.2258986,3997.3,3996.9,3.2078]
[1759023757508,0.9074,3997.0,3996.9,3.4347]
[1759023757708,0.9074,3997.0,3996.9,3.9061]
[1759023758606,0.9074,3997.0,3996.9,5.04507175]
[1759023759621,0.9074,3997.0,3996.6,0.0020953]
[1759023759805,0.9074,3997.0,3996.9,0.255]
[1759023760006,1.35748,3997.0,3996.9,0.255]
[1759023763826,0.4691,3997.0,3996.9,0.8837]
[1759023764017,0.9074,3997.0,3996.9,0.2269]
[1759023765012,0.0027486,3997.3,3996.9,0.2269]
[1759023765013,0.0027486,3997.3,3997.2,1.07875]
[1759023765220,0.0027486,3997.3,3997.2,2.47272175]
[1759023765416,0.3375486,3997.3,3997.2,2.47272175]
[1759023766119,0.5567486,3997.3,3997.2,2.47272175]
[1759023766312,0.0027486,3997.3,3997.2,2.47272175]
[1759023766816,0.0027486,3997.3,3997.2,7.47272175]
[1759023772015,0.3528,3998.0,3997.9,0.67687]
[1759023772218,0.1336,3998.0,3997.9,2.47264175]
[1759023772716,0.6876,3998.0,3997.9,2.28724175]
[1759023773118,0.69025846,3998.0,3997.9,2.28724175]
[1759023773720,0.86295846,3998.0,3997.9,1.58227175]
[1759023774023,0.86295846,3998.0,3997.9,1.62087175]
[1759023775826,0.7272,3997.6,3997.5,3.2078]
[1759023776121,0.7272,3997.6,3997.5,1.60717175]
[1759023776518,0.7272,3997.6,3997.5,1.82667175]
[1759023777315,0.7272,3997.2,3997.0,1.13897175]
[1759023777618,0.7272,3997.1,3997.0,1.13897175]
[1759023777818,0.7272,3997.1,3997.0,1.39397175]
[1759023778021,0.7272,3997.1,3997.0,1.60717175]
[1759023778219,1.17727,3997.1,3997.0,0.255]
[1759023778419,0.7272,3996.8,3996.7,1.13897175]
[1759023778621,1.1773,3996.8,3996.7,0.4682]
[1759023779021,1.1773,3996.8,3996.7,0.255]
[1759023779524,1.1773,3996.8,3996.6,0.0020953]
[1759023780328,2.31627175,3996.8,3996.6,0.0020953]
[1759023780629,3.935,3996.7,3996.6,0.0020953]
[1759023783722,3.935,3996.7,3996.6,0.4347953]
[1759023783927,3.935,3996.7,3996.6,1.57376705]
[1759023783928,0.5202,3996.7,3996.6,1.57376705]
[1759023784128,0.3128,3996.7,3996.6,1.75906705]
[1759023785123,3.2078,3997.1,3996.9,1.06808]
[1759023785323,0.3128,3997.3,3997.2,0.4327]
[1759023785531,0.5202,3997.3,3997.2,0.4327]
[1759023785736,0.7272,3997.3,3997.2,0.4327]
[1759023785924,0.7272,3997.3,3997.2,0.6877]
[1759023786836,0.5202,3997.3,3997.2,0.873]
[1759023787028,0.5202,3997.3,3997.2,0.6877]
[1759023787931,0.7272,3997.3,3997.2,0.6877]
[1759023788634,0.7272,3996.7,3996.6,0.2152953]
[1759023788836,0.3128,3996.7,3996.6,0.8750953]
[1759023789538,0.3128,3996.7,3996.6,0.6897953]
[1759023789539,0.7283,3996.7,3996.6,0.6897953]
[1759023792337,0.7283,3996.7,3996.6,0.4702953]
[1759023792542,0.7283,3996.7,3996.6,0.0020953]
[1759023792841,0.7283,3996.7,3996.6,0.2570953]
[1759023795337,0.7283,3996.7,3996.6,0.0020953]
[1759023798731,0.1331,3997.0,3996.6,0.0020953]
[1759023798732,0.1331,3997.0,3996.9,0.6926]
[1759023798940,0.1331,3997.0,3996.9,2.53665175]
[1759023799240,0.5508,3997.0,3996.9,1.81657175]
[1759023799433,0.5508,3997.0,3996.9,1.13897175]
[1759023799633,1.00088,3997.0,3996.9,0.255]
[1759023799821,0.5508,3997.0,3996.9,0.255]
[1759023800737,0.8618,3997.0,3996.9,0.255]
[1759023801238,0.7287,3996.7,3996.6,0.0020953]
[1759023801831,1.86767175,3996.7,3996.6,0.0020953]
[1759023803035,0.2096,3995.6,3995.5,1.85921175]
[1759023803243,2.26427175,3996.7,3995.5,1.85921175]
[1759023803244,0.335,3995.9,3995.5,2.27261175]
[1759023803535,0.7617,3995.7,3995.6,1.56707175]
[1759023803731,0.7617,3995.7,3995.6,1.82207175]
[1759023803931,0.7617,3995.7,3995.6,1.56707175]
[1759023804137,0.7617,3995.7,3995.6,2.09404146]
[1759023804339,0.7617,3995.7,3995.6,0.68516971]
[1759023804537,0.7617,3995.7,3995.6,1.82414146]
[1759023805039,0.7617,3995.7,3995.6,0.68516971]
[1759023805339,0.5477,3995.7,3995.6,2.09404146]
[1759023805737,0.7617,3995.7,3995.6,1.82414146]
[1759023808441,0.7617,3995.7,3995.6,0.68516971]
[1759023809645,0.7617,3995.7,3995.6,0.25706971]
[1759023811740,0.7617,3995.7,3995.6,0.46906971]
[1759023812836,0.7617,3995.7,3995.6,0.68516971]
[1759023813241,1.21192,3995.7,3995.6,0.68516971]
[1759023814146,1.21192,3995.7,3995.6,2.09404146]
[1759023814350,0.7617,3995.7,3995.6,1.82414146]
[1759023814545,0.5477,3995.7,3995.6,2.09404146]
[1759023814739,0.335,3995.7,3995.6,2.09404146]
[1759023814935,0.58259,3996.0,3995.8,0.698]
[1759023814936,0.335,3995.9,3995.8,0.698]
[1759023815138,0.1324,3996.5,3995.8,2.09197175]
[1759023815448,0.5477,3996.4,3996.3,0.4281]
[1759023815651,0.7617,3996.4,3996.3,0.255]
[1759023816144,1.90067175,3996.4,3996.3,0.255]
[1759023816446,0.335,3996.4,3996.3,2.09197175]
[1759023816641,0.335,3996.9,3996.6,0.2699]
[1759023816842,0.5477,3996.9,3996.8,0.4281]
[1759023817044,0.7617,3996.9,3996.8,0.4281]
[1759023817840,0.7617,3996.9,3996.8,0.212]
[1759023821652,0.7617,3996.9,3996.8,0.698]
[1759023821653,0.335,3996.9,3996.8,0.698]
[1759023821868,4.21762,3997.5,3997.4,0.4281]
[1759023822153,4.21762,3997.5,3997.4,0.212]
[1759023822339,0.7617,3997.2,3997.1,0.6831]
[1759023823253,0.7617,3997.2,3997.1,3.8909]
[1759023823551,0.7617,3997.2,3997.1,0.6831]
[1759023824349,0.7617,3997.2,3997.1,0.255]
[1759023825460,0.7617,3997.2,3997.1,0.6831]
[1759023825751,0.335,3997.2,3997.1,0.953]
[1759023826152,0.335,3997.2,3997.1,4.1608]
[1759023826557,0.44999,3997.8,3997.5,0.2699]
[1759023826850,0.99769,3997.8,3997.7,0.698]
[1759023827159,1.21169,3997.8,3997.6,0.255]
[1759023828546,4.41949,3997.8,3997.6,0.255]
[1759023828946,4.41949,3997.8,3996.7,4.62740403]
[1759023828947,0.4267,3997.2,3996.7,4.62740403]
[1759023829252,0.5477,3996.8,3996.7,4.62740403]
[1759023829849,0.5477,3996.8,3996.7,4.88240403]
[1759023830252,0.7617,3996.8,3996.7,4.88240403]
[1759023830553,0.7617,3996.8,3996.7,1.67460403]
[1759023831258,0.7617,3996.8,3996.7,4.88240403]
[1759023831754,0.335,3996.8,3996.7,4.88240403]
[1759023833752,0.16682252,3997.5,3997.4,0.2133]
[1759023833952,0.66821,3997.6,3997.5,0.4189]
[1759023834144,0.5716,3997.5,3997.4,1.67460403]
[1759023834551,0.5716,3997.5,3997.4,0.255]
[1759023835255,0.5716,3997.5,3997.4,0.4683]
[1759023835455,3.2078,3997.9,3997.4,0.6739]
[1759023835655,4.09437,3997.9,3997.8,0.4189]
[1759023835961,4.43337,3997.9,3997.8,0.4189]
[1759023837857,4.43337,3997.9,3997.8,0.2133]
[1759023838666,4.43337,3997.9,3997.7,0.255]
[1759023841065,4.43337,3997.9,3997.8,0.2133]
[1759023841566,1.22557,3997.9,3997.8,0.2133]
[1759023842768,4.43337,3997.9,3997.7,0.255]
[1759023843166,0.7756,3997.1,3997.0,5.04630403]
[1759023843372,0.5572,3997.1,3997.0,5.44770403]
[1759023846678,0.5572,3997.1,3997.0,5.30130403]
[1759023846976,0.4501,3996.8,3996.5,3.2078]
[1759023847171,0.7756,3996.6,3996.5,3.4211]
[1759023847370,0.7756,3996.6,3996.5,3.8817]
[1759023848268,0.339,3996.6,3996.5,4.0281]
[1759023848468,0.339,3996.9,3996.8,0.5653]
[1759023848673,0.339,3996.9,3996.8,2.23990403]
[1759023849866,0.5572,3996.9,3996.8,2.09350403]
[1759023852482,0.779,3996.9,3996.8,2.09350403]
[1759023854982,1.22908,3996.9,3996.8,2.09350403]
[1759023856580,0.779,3996.9,3996.8,2.09350403]
[1759023857290,0.779,3996.9,3996.8,2.24010403]
[1759023857481,0.5572,3996.9,3996.8,2.24010403]
[1759023857781,1.00728,3996.9,3996.8,2.24010403]
[1759023858381,0.5572,3996.9,3996.8,2.24010403]
[1759023859182,1.00728,3996.9,3996.8,2.24010403]
[1759023859680,0.5572,3996.9,3996.8,2.24010403]
[1759023861285,0.5572,3996.9,3996.8,2.69019403]
[1759023861982,0.5572,3996.9,3996.8,2.24010403]
[1759023863789,0.5572,3996.9,3996.8,2.09350403]
[1759023864084,1.22468,3996.9,3996.8,2.09350403]
[1759023869795,0.5572,3996.9,3996.8,2.24000403]
[1759023870593,0.339,3996.9,3996.8,2.69009403]
[1759023870900,0.99888,3997.8,3997.7,0.5968]
[1759023871089,0.5489,3997.8,3997.7,2.27140403]
[1759023871494,0.5489,3997.8,3997.7,2.47249594]
[1759023871802,0.5489,3997.8,3997.7,0.8518]
[1759023872096,0.5489,3997.8,3997.7,0.7053]
[1759023872097,0.7663,3997.8,3997.7,0.7053]
[1759023874701,0.5489,3997.8,3997.7,0.8518]
[1759023875594,0.3253,3997.8,3997.7,0.8518]
[1759023875794,0.32795846,3998.0,3997.9,0.4503]
[1759023875999,0.00265846,3998.0,3997.9,2.01640403]
[1759023876399,0.00265846,3998.0,3997.9,5.22420403]
[1759023877998,0.00265846,3998.0,3997.9,5.47920403]
[1759023878898,0.00265846,3998.0,3997.9,10.47920403]
[1759023879499,0.00265846,3998.0,3997.9,5.47920403]
[1759023882805,0.00265846,3998.0,3997.9,5.19765933]
[1759023884207,0.3253,3998.3,3998.2,0.4503]
[1759023884395,0.3253,3998.3,3998.2,2.43979933]
[1759023884596,0.4618,3999.5,3999.1,0.5968]
[1759023884796,0.5775,3999.5,3999.4,1.36345933]
[1759023884997,0.5775,3999.5,3999.4,1.61845933]
[1759023885202,0.58003755,3999.5,3999.4,1.621375]
[1759023885399,0.90533755,3999.5,3999.4,1.621375]
[1759023886306,5.90533755,3999.5,3999.4,0.25791567]
[1759023886503,5.90533755,3999.5,3998.7,3.2078]
[1759023886504,0.44987,3998.8,3998.7,3.2078]
[1759023886702,0.7663,3998.3,3998.2,1.36345933]
[1759023886904,0.7663,3998.3,3998.2,1.61845933]
[1759023887502,0.7663,3998.3,3998.2,1.62067382]
[1759023888004,0.7663,3998.3,3998.2,0.48261449]
[1759023888197,0.7663,3998.3,3998.2,1.62067382]
[1759023888399,0.7663,3998.3,3998.2,1.84557382]
[1759023889006,0.7663,3998.3,3998.2,1.62067382]
[1759023889309,0.7663,3998.3,3998.2,1.39527382]
[1759023891613,0.7663,3998.3,3998.2,1.84557382]
[1759023892903,0.7663,3998.3,3998.2,1.62067382]
[1759023895404,0.7663,3998.3,3998.2,1.39527382]
[1759023897208,0.7663,3998.3,3998.2,1.61317382]
[1759023897509,0.7663,3998.3,3998.2,1.83207382]
[1759023899606,0.5489,3998.3,3998.2,1.98137382]
[1759023899813,0.1365,3998.5,3998.4,0.4368]
[1759023900113,0.79895,3999.0,3998.9,0.2179]
[1759023900306,0.3491,3999.0,3998.9,0.8411]
[1759023900610,0.6913,3999.0,3998.9,1.97915933]
[1759023901215,0.9175,3999.0,3998.9,1.82985933]
[1759023901512,0.9175,3999.0,3998.9,0.255]
[1759023902106,0.9108,3998.5,3998.4,3.2078]
[1759023902411,0.9108,3998.5,3998.4,3.4628]
[1759023903009,0.44991,3998.4,3998.2,0.00221449]
[1759023903213,0.781,3998.3,3998.2,0.00221449]
[1759023903414,0.781,3998.3,3998.2,0.25721449]
[1759023903616,5.781,3998.3,3998.2,0.25721449]
[1759023903913,6.32270166,3998.3,3998.2,0.25721449]
[1759023904116,6.32270166,3998.3,3996.7,3.6446]
[1759023904117,0.5684,3996.8,3996.7,3.6446]
[1759023904413,0.3422,3996.8,3996.7,5.63705933]
[1759023904620,0.5548,3996.8,3996.7,5.03765933]
[1759023905213,0.5548,3996.8,3996.7,5.03980938]
[1759023905524,1.23109,3996.8,3996.7,1.39520938]
[1759023905918,0.781,3996.8,3996.7,1.61310938]
[1759023907111,0.781,3996.8,3996.7,0.00215005]
[1759023909126,0.781,3996.8,3996.7,1.14020938]
[1759023910424,3.2078,3997.2,3996.7,1.56720938]
[1759023910621,0.5365,3996.8,3996.7,0.42915005]
[1759023911113,0.1292,3997.0,3996.7,0.57835005]
[1759023911314,3.2078,3997.2,3997.1,0.5697]
[1759023911515,0.1298,3997.5,3997.2,0.1492]
[1759023911829,0.4562,3997.5,3997.4,1.55855933]
[1759023912014,0.4562,3997.5,3997.4,1.81355933]
[1759023912328,3.2078,3997.7,3997.5,0.5697]
[1759023912329,0.327,3997.6,3997.5,0.5697]
[1759023913726,0.327,3997.9,3997.5,1.55855933]
[1759023913920,0.1298,3998.5,3997.9,0.5697]
[1759023914228,0.88174,3998.2,3998.1,1.34945933]
[1759023914524,1.20874,3998.2,3998.1,1.34945933]
[1759023916560,0.7588,3998.2,3998.1,1.55855933]
[1759023916718,0.327,3998.2,3998.1,1.70775933]
[1759023916917,0.5365,3998.2,3998.1,1.70775933]
[1759023917118,0.5365,3998.2,3998.1,4.91555933]
[1759023918825,0.327,3998.4,3998.1,4.76635933]
[1759023919018,0.327,3998.4,3998.3,0.5697]
[1759023919222,0.327,3998.4,3998.3,0.8247]
[1759023919422,0.4568,3998.5,3998.4,0.5697]
[1759023919616,0.4568,3998.5,3998.4,1.70775933]
[1759023919829,1.20871,3998.4,3998.3,0.255]
[1759023920022,0.7588,3998.4,3998.3,1.60445933]
[1759023920222,0.7588,3998.4,3998.3,1.81355933]
[1759023923929,0.5365,3998.4,3998.3,1.96275933]
[1759023925228,0.7636,3998.4,3998.3,1.81355933]
[1759023926533,0.5365,3998.4,3998.3,1.96275933]
[1759023927033,0.327,3998.4,3998.3,1.96275933]
[1759023927232,0.5448,3998.4,3998.3,1.96275933]
[1759023929632,0.5448,3998.4,3998.3,2.41268933]
[1759023930026,3.337,3999.0,3998.3,2.41268933]
[1759023930027,0.9055,3999.0,3998.9,0.4299]
[1759023930226,0.4606,3999.0,3998.9,1.97215933]
[1759023930428,0.4606,3999.0,3998.9,0.8341]
[1759023931132,0.34953755,3999.5,3999.4,0.4299]
[1759023931336,0.34953755,3999.5,3999.4,1.82295933]
[1759023931833,0.68093755,3999.5,3999.4,1.97215933]
[1759023932336,0.33393755,3999.5,3999.4,2.17231681]
[1759023932637,0.00253755,3999.5,3999.4,2.17231681]
[1759023933932,0.33393755,3999.5,3999.4,1.97215933]
[1759023934132,0.68103755,3999.5,3999.4,0.8341]
[1759023934334,0.68103755,3999.5,3999.4,1.82295933]
[1759023934530,0.33393755,3999.5,3999.4,1.97215933]
[1759023934728,0.46323755,3999.5,3999.4,1.97215933]
[1759023935425,0.90813755,3999.5,3999.4,1.34595933]
[1759023935627,0.90813755,3999.5,3999.4,1.59995933]
[1759023940639,0.90813755,3999.5,3999.4,1.39205933]
[1759023941740,0.90813755,3999.5,3999.4,0.254]
[1759023941937,0.90813755,3999.5,3999.4,1.39205933]
[1759023942536,0.90813755,3999.5,3999.4,0.254]
[1759023943037,0.90813755,3999.5,3999.4,0.4619]
[1759023944045,0.90813755,3999.5,3999.4,1.8796923]
[1759023946647,1.35792755,3999.5,3999.4,1.8796923]
[1759023946846,1.35792755,3999.5,3999.4,0.254]
[1759023949733,1.22616,3998.9,3998.8,3.2078]
[1759023949930,1.22616,3998.9,3998.8,0.254]
[1759023951244,0.7763,3998.9,3998.8,0.254]
[1759023952751,0.4449,3998.6,3998.5,1.82131612]
[1759023952940,0.7763,3998.6,3998.5,2.07531612]
[1759023953437,0.7763,3998.6,3998.5,2.29731612]
[1759023954147,0.7763,3998.6,3998.5,2.44691612]
[1759023954148,0.3314,3998.6,3998.5,2.44691612]
[1759023955044,0.5374,3998.6,3998.5,2.44691612]
[1759023957846,0.5374,3998.6,3998.5,2.29731612]
[1759023958049,0.5374,3998.6,3998.5,2.74721612]
[1759023959151,0.5374,3998.6,3998.5,2.89681612]
[1759023960949,0.5374,3998.6,3998.5,2.44691612]
[1759023961151,0.5374,3998.6,3998.5,2.89681612]
[1759023962453,0.5374,3998.6,3998.5,2.44691612]
[1759023962752,1.20469,3998.6,3998.5,0.254]
[1759023963153,1.20469,3998.6,3998.5,0.4725]
[1759023965751,1.20469,3998.6,3998.5,0.254]
[1759023965967,0.7445,3998.1,3998.0,3.2078]
[1759023966156,0.7445,3998.1,3998.0,3.4618]
[1759023966350,0.7445,3998.1,3998.0,3.6803]
[1759023967649,0.7445,3998.1,3998.0,3.8945]
[1759023969054,0.5271,3998.1,3998.0,3.8945]
[1759023969251,0.5271,3998.1,3998.0,4.0439]
[1759023969457,0.7347,3998.1,3998.0,3.8945]
[1759023971353,0.5483,3998.9,3998.8,0.44987]
[1759023971556,3.2078,3999.2,3999.0,0.66545]
[1759023971754,3.2078,3999.2,3999.1,2.2461923]
[1759023971949,0.3328,3999.4,3999.3,0.5744]
[1759023972150,0.3328,3999.4,3999.3,0.8284]
[1759023972351,0.7559,3999.4,3999.3,0.4696]
[1759023973055,0.00253755,3999.5,3999.4,1.0242]
[1759023973252,0.00253755,3999.5,3999.4,2.4419923]
[1759023973450,0.00253755,3999.5,3999.4,5.9037923]
[1759023974054,0.33533755,3999.5,3999.4,5.9037923]
[1759023975258,0.00253755,3999.5,3999.4,5.9037923]
[1759023975754,0.68143755,3999.5,3999.4,5.4539923]
[1759023975961,0.68143755,3999.5,3999.4,5.3045923]
[1759023976853,0.68143755,3999.5,3999.4,5.4539923]
[1759023977049,0.46593755,3999.5,3999.4,5.4539923]
[1759023979759,0.33533755,3999.5,3999.4,5.4539923]
[1759023980461,0.68143755,3999.5,3999.4,3.8868]
[1759023980667,0.88903755,3999.5,3999.4,0.254]
[1759023981960,0.7826,3999.4,3999.0,4.6255923]
[1759023982168,0.7559,3999.1,3999.0,4.8411923]
[1759023982364,0.7559,3999.1,3999.0,5.0951923]
[1759023982566,0.7559,3999.1,3999.0,5.3045923]
[1759023983869,0.7559,3999.1,3999.0,3.4234]
[1759023984170,0.7559,3999.1,3999.0,3.6774]
[1759023986367,0.7559,3999.1,3998.6,3.65769]
[1759023986368,0.44985,3999.0,3998.6,3.65769]
[1759023986559,0.7362,3998.7,3998.6,3.65769]
[1759023986756,0.7362,3998.7,3998.6,0.254]
[1759023988480,0.7362,3998.7,3998.6,0.4617]
[1759023988674,0.8651,3998.5,3998.4,0.2077]
[1759023988974,0.8651,3998.5,3998.4,0.6816]
[1759023990073,0.3132,3998.5,3998.4,0.8308]
[1759023990772,0.4421,3998.5,3998.4,0.8308]
[1759023992274,0.6569,3998.5,3998.4,0.8308]
[1759023993369,0.3132,3998.5,3998.4,0.8308]
[1759023993570,0.1289,3999.0,3998.4,0.6816]
[1759023993770,0.528,3998.8,3998.7,1.8453923]
[1759023993970,0.528,3998.8,3998.7,2.0993923]
[1759023994775,0.7362,3998.8,3998.7,2.0993923]
[1759023995474,1.18607,3998.8,3998.7,0.254]
[1759023997578,0.7362,3998.8,3998.7,1.13148]
[1759023997779,0.528,3998.8,3998.7,2.5492723]
[1759023997980,0.4421,3999.0,3998.9,1.02666]
[1759023998179,0.4421,3999.0,3998.9,1.28066]
[1759023998379,0.3132,3999.0,3998.9,1.28066]
[1759023998878,0.4421,3999.0,3998.9,1.28066]
[1759023999977,0.3132,3999.0,3998.9,1.28066]
[1759024002583,0.86933755,3999.5,3999.4,0.8774]
[1759024002886,0.44633755,3999.5,3999.4,2.6983923]